Workbook

Sheet hd1k
A1: RomWBW Modern (hd1k) Disk Layout
A4: RomWBW CP/M Filesystem Parameters (hd1k) | D4: Simulated Disk Geometry
A5: Sector Size (bytes) | B5: 512 | D5: Sectors per Trk | E5: 16
A6: Block Size (bytes) | B6: 4096 | C6: (4 KB) | D6: Tracks per Cyl | E6: 16
A7: Block Count | B7: 2044 | D7: Cylinder Count | E7: =B11/512/E6/E5 -> 64
A8: Directory Entries | B8: 1024
A9: System (Boot) Area | B9: =16*1024 -> 16384 | C9: (16 KB)
A10: Filesystem Storage (bytes) | B10: =B7*B6 -> 8372224 | C10: (8,176 KB)
A11: Total Slice Size (bytes) | B11: =B9+B10 -> 8388608 | C11: (8 MB)
A13: RomWBW Disk Layout (hd1k)
A14: Prefix Size (bytes) | B14: =1*1024*1024 -> 1048576 | C14: (1 MB) | D14: MBR is first sector of Prefix
A15: RomWBW Slices | B15: 64
A16: RomWBW Partition Size (bytes) | B16: =B15*B11 -> 536870912 | C16: (512 MB)
A17: FAT Partition Size (bytes) | B17: =384*1024*1024 -> 402653184 | C17: (384 MB)
B19: Bytes | D19: Sectors | F19: Bytes (Hex) | H19: Bytes (MB)
A20: Combo Disk (hd1k) | B20: Start | C20: Length | D20: Start | E20: Length | F20: Start | G20: Length | H20: Start | I20: Length
A21: Prefix | B21: 0 | C21: =B14 -> 1048576 | D21: =B21/512 -> 0 | E21: =C21/512 -> 2048 | F21: =DEC2HEX(B21) -> 0 | G21: =DEC2HEX(C21) -> 100000 | H21: =B21/1024/1024 -> 0 | I21: =C21/1024/1024 -> 1
A22: - MBR | B22: 0 | C22: 512 | D22: =B22/512 -> 0 | E22: =C22/512 -> 1 | F22: =DEC2HEX(B22) -> 0 | G22: 200
A23: - Slack | B23: =B22+C22 -> 512 | C23: =C21-C22 -> 1048064 | D23: 1 | E23: 2047 | F23: 200 | G23: FFE00 | H23: =B23/1024/1024 -> 0.00048828125 | I23: 0.9995117188
A24: RomWBW Partition | B24: =B21+C21 -> 1048576 | C24: =B16 -> 536870912 | D24: 2048 | E24: 1048576 | F24: =DEC2HEX(B24) -> 100000 | G24: 20000000 | H24: 1 | I24: 512
A25: - Slice 0 | B25: =B24 -> 1048576 | C25: =$B$11 -> 8388608 | D25: 2048 | E25: 16384 | F25: 100000 | G25: 800000 | H25: 1 | I25: 8
A26: - Slice 1 | B26: =B25+C25 -> 9437184 | C26: =$B$11 -> 8388608 | D26: 18432 | E26: 16384 | F26: 900000 | G26: 800000 | H26: 9 | I26: 8
A27: - Slice 2 | B27: =B26+C26 -> 17825792 | C27: 8388608 | D27: 34816 | E27: 16384 | F27: 1100000 | G27: 800000 | H27: 17 | I27: 8
A28: - Slice 63 | B28: =B24+((B15-1) * C28) -> 529530880 | C28: 8388608 | D28: 1034240 | E28: 16384 | F28: 1F900000 | G28: 800000 | H28: 505 | I28: 8
A29: FAT Partition | B29: =B14+B16 -> 537919488 | C29: =B17 -> 402653184 | D29: 1050624 | E29: 786432 | F29: 20100000 | G29: 18000000 | H29: 513 | I29: 384
A30: <end> | B30: =B29+C29 -> 940572672 | D30: 1837056 | F30: 38100000 | H30: 897

Sheet hd512
A1: RomWBW Classic (hd512) Disk Layout
A4: RomWBW CP/M Filesystem Parameters (hd512) | D4: Simulated Disk Geometry
A5: Sector Size (bytes) | B5: 512 | D5: Sectors per Trk | E5: 16
A6: Block Size (bytes) | B6: 4096 | C6: (4 KB) | D6: Tracks per Cyl | E6: 16
A7: Block Count | B7: 2048 | D7: Cylinder Count | E7: =B11/512/E6/E5 -> 65
A8: Directory Entries | B8: 512
A9: System (Boot) Area | B9: =128*1024 -> 131072 | C9: (128 KB)
A10: Filesystem Storage (bytes) | B10: =B7*B6 -> 8388608 | C10: (8 MB)
A11: Total Slice Size (bytes) | B11: =B9+B10 -> 8519680 | C11: (8,320 KB)
A13: RomWBW Disk Layout (hd512)
A14: Prefix Size (bytes) | B14: 0 | D14: MBR is first sector of first slice
A15: RomWBW Slices | B15: 64
A16: RomWBW Partition Size (bytes) | B16: =B15*B11 -> 545259520 | C16: (520 MB)
A17: FAT Partition Size (bytes) | B17: =384*1024*1024 -> 402653184 | C17: (384 MB)
B19: Bytes | D19: Sectors | F19: Bytes (Hex) | H19: Bytes (MB)
A20: Combo Disk (hd512) | B20: Start | C20: Length | D20: Start | E20: Length | F20: Start | G20: Length | H20: Start | I20: Length
A21: Prefix | B21: 0 | C21: =B14 -> 0 | D21: =B21/512 -> 0 | E21: =C21/512 -> 0 | F21: =DEC2HEX(B21) -> 0 | G21: =DEC2HEX(C21) -> 0 | H21: =B21/1024/1024 -> 0 | I21: =C21/1024/1024 -> 0
A22: - MBR | B22: 0 | C22: 512 | D22: =B22/512 -> 0 | E22: 1 | F22: =DEC2HEX(B22) -> 0 | G22: 200
A23: - Slack
A24: RomWBW Storage | B24: =B21+C21 -> 0 | C24: =B16 -> 545259520 | D24: 0 | E24: 1064960 | F24: 0 | G24: 20800000 | H24: =B24/1024/1024 -> 0 | I24: =C24/1024/1024 -> 520
A25: - Slice 0 | B25: =B24 -> 0 | C25: =$B$11 -> 8519680 | D25: 0 | E25: 16640 | F25: 0 | G25: 820000 | H25: 0 | I25: 8.125
A26: - Slice 1 | B26: =B25+C25 -> 8519680 | C26: =$B$11 -> 8519680 | D26: 16640 | E26: 16640 | F26: 820000 | G26: 820000 | H26: 8.125 | I26: 8.125
A27: - Slice 2 | B27: =B26+C26 -> 17039360 | C27: 8519680 | D27: 33280 | E27: 16640 | F27: 1040000 | G27: 820000 | H27: 16.25 | I27: 8.125
A28: - Slice 63 | B28: =B24+((B15-1) * C28) -> 536739840 | C28: 8519680 | D28: 1048320 | E28: 16640 | F28: 1FFE0000 | G28: 820000 | H28: 511.875 | I28: 8.125
A29: FAT Partition | B29: =B14+B16 -> 545259520 | C29: =B17 -> 402653184 | D29: 1064960 | E29: 786432 | F29: 20800000 | G29: 18000000 | H29: 520 | I29: 384
A30: <end> | B30: =B29+C29 -> 947912704 | D30: 1851392 | F30: 38800000 | H30: 904
